[Event "Late-Titled-Tuesday-Blitz-January-16-2024"]
[Site "Chess.com"]
[Date "2024.01.16"]
[Round "9"]
[White "xakevicius91"]
[Black "ChessBrainiacOnTwitch"]
[Result "0-1"]
[WhiteElo "2543"]
[BlackElo "2789"]
[TimeControl "180+1"]
[EndTime "15:45:34 PST"]
[Termination "ChessBrainiacOnTwitch won by checkmate"]

1. e4 {[%clk 0:02:59.7]} 1... c5 {[%clk 0:02:59.8]} 2. Nf3 {[%clk 0:02:57.4]}
2... d6 {[%clk 0:03:00.1]} 3. Bb5+ {[%clk 0:02:55.6]} 3... Nd7 {[%clk
0:02:59.2]} 4. a4 {[%clk 0:02:55.7]} 4... Nf6 {[%clk 0:02:59.3]} 5. Nc3 {[%clk
0:02:55.6]} 5... g6 {[%clk 0:02:59.4]} 6. O-O {[%clk 0:02:54.9]} 6... Bg7 {[%clk
0:02:59.4]} 7. Re1 {[%clk 0:02:55.1]} 7... O-O {[%clk 0:02:59.6]} 8. a5 {[%clk
0:02:55.4]} 8... a6 {[%clk 0:02:59.2]} 9. Bf1 {[%clk 0:02:55.1]} 9... Qc7 {[%clk
0:02:58.8]} 10. d4 {[%clk 0:02:52.6]} 10... cxd4 {[%clk 0:02:57.5]} 11. Nxd4
{[%clk 0:02:53.5]} 11... Nc5 {[%clk 0:02:53.1]} 12. f3 {[%clk 0:02:49.4]} 12...
b5 {[%clk 0:02:53.1]} 13. axb6 {[%clk 0:02:38.4]} 13... Qxb6 {[%clk 0:02:53]}
14. Be3 {[%clk 0:02:35.7]} 14... Qxb2 {[%clk 0:02:42.1]} 15. Qd2 {[%clk
0:02:36]} 15... Qb6 {[%clk 0:02:41.6]} 16. Nb3 {[%clk 0:02:30.7]} 16... Nxb3
{[%clk 0:02:35.9]} 17. cxb3 {[%clk 0:02:31.6]} 17... Qb7 {[%clk 0:02:29.1]} 18.
Bc4 {[%clk 0:02:27.6]} 18... Be6 {[%clk 0:02:27.2]} 19. Bxe6 {[%clk 0:02:27.2]}
19... fxe6 {[%clk 0:02:28.1]} 20. Ne2 {[%clk 0:02:17.5]} 20... e5 {[%clk
0:02:26.1]} 21. Rec1 {[%clk 0:02:00.5]} 21... Rfc8 {[%clk 0:02:25.9]} 22. Rab1
{[%clk 0:01:49.4]} 22... Rab8 {[%clk 0:02:05.8]} 23. h3 {[%clk 0:01:43.8]} 23...
Rxc1+ {[%clk 0:02:00.2]} 24. Rxc1 {[%clk 0:01:42.6]} 24... Qxb3 {[%clk
0:01:56.8]} 25. Rc7 {[%clk 0:01:42.7]} 25... Rb7 {[%clk 0:01:53.7]} 26. Rc8+
{[%clk 0:01:42.1]} 26... Kf7 {[%clk 0:01:54.1]} 27. Nc3 {[%clk 0:01:29.9]} 27...
Qb2 {[%clk 0:01:51.6]} 28. Qe1 {[%clk 0:01:26.4]} 28... Rb3 {[%clk 0:01:49.3]}
29. Kh2 {[%clk 0:01:21.7]} 29... Qc2 {[%clk 0:01:46.4]} 30. Rc7 {[%clk
0:01:15.6]} 30... Rb2 {[%clk 0:01:43.8]} 31. Qg3 {[%clk 0:01:10.3]} 31... Qd3
{[%clk 0:01:35.7]} 32. Bg5 {[%clk 0:01:02.7]} 32... Rc2 {[%clk 0:01:35.1]} 33.
Bxf6 {[%clk 0:01:01.3]} 33... Bxf6 {[%clk 0:01:32.1]} 34. Nd5 {[%clk 0:00:56.6]}
34... Rxc7 {[%clk 0:01:31.7]} 35. Nxc7 {[%clk 0:00:57.5]} 35... a5 {[%clk
0:01:30.4]} 36. Qg4 {[%clk 0:00:56.1]} 36... Qc4 {[%clk 0:01:25.8]} 37. Qd7
{[%clk 0:00:50.1]} 37... Bg5 {[%clk 0:01:07.7]} 38. Qe8+ {[%clk 0:00:43.2]}
38... Kg7 {[%clk 0:01:05]} 39. Nd5 {[%clk 0:00:43.7]} 39... a4 {[%clk
0:00:57.3]} 40. Nb6 {[%clk 0:00:15.5]} 40... Bf4+ {[%clk 0:00:56.5]} 41. g3
{[%clk 0:00:14.6]} 41... Qe2+ {[%clk 0:00:55.6]} 42. Kg1 {[%clk 0:00:14.3]}
42... Qe3+ {[%clk 0:00:55.6]} 43. Kg2 {[%clk 0:00:14.2]} 43... Qe2+ {[%clk
0:00:54.8]} 44. Kg1 {[%clk 0:00:14.6]} 44... Be3+ {[%clk 0:00:55.4]} 45. Kh1
{[%clk 0:00:15.1]} 45... Qf1+ {[%clk 0:00:56]} 46. Kh2 {[%clk 0:00:15.7]} 46...
Qg1# {[%clk 0:00:56]} 0-1

[Event "Late-Titled-Tuesday-Blitz-January-16-2024"]
[Site "Chess.com"]
[Date "2024.01.16"]
[Round "9"]
[White "Too_Stupid_To_Play"]
[Black "Navyblue1"]
[Result "1-0"]
[WhiteElo "2307"]
[BlackElo "2173"]
[TimeControl "180+1"]
[EndTime "15:45:35 PST"]
[Termination "Too_Stupid_To_Play won by resignation"]

1. b4 {[%clk 0:03:00.9]} 1... Nf6 {[%clk 0:02:47.9]} 2. Bb2 {[%clk 0:03:01.3]}
2... g6 {[%clk 0:02:44.6]} 3. Bxf6 {[%clk 0:02:58.5]} 3... exf6 {[%clk
0:02:44.1]} 4. a3 {[%clk 0:02:58.2]} 4... Bg7 {[%clk 0:02:43.9]} 5. d4 {[%clk
0:02:58.7]} 5... f5 {[%clk 0:02:43.5]} 6. e3 {[%clk 0:02:58.5]} 6... d5 {[%clk
0:02:39.7]} 7. g3 {[%clk 0:02:58.8]} 7... O-O {[%clk 0:02:39.3]} 8. h4 {[%clk
0:02:59.3]} 8... h5 {[%clk 0:02:38]} 9. Bd3 {[%clk 0:02:53.7]} 9... Nd7 {[%clk
0:02:38]} 10. Ne2 {[%clk 0:02:53.4]} 10... Nf6 {[%clk 0:02:37.8]} 11. Nd2 {[%clk
0:02:51.6]} 11... Ne4 {[%clk 0:02:37.2]} 12. Nf4 {[%clk 0:02:47.8]} 12... Re8
{[%clk 0:02:26]} 13. Nf3 {[%clk 0:02:47.2]} 13... Be6 {[%clk 0:02:01.6]} 14. O-O
{[%clk 0:02:42.6]} 14... Rc8 {[%clk 0:01:41.4]} 15. Qe2 {[%clk 0:02:29.6]} 15...
c6 {[%clk 0:01:39.3]} 16. Rfc1 {[%clk 0:02:29.6]} 16... b6 {[%clk 0:01:15.8]}
17. c4 {[%clk 0:02:19.2]} 17... dxc4 {[%clk 0:01:12.8]} 18. Bxc4 {[%clk
0:02:18.3]} 18... Bxc4 {[%clk 0:01:08.5]} 19. Rxc4 {[%clk 0:02:17.3]} 19... c5
{[%clk 0:00:50.6]} 20. bxc5 {[%clk 0:02:02.2]} 20... bxc5 {[%clk 0:00:50]} 21.
Rac1 {[%clk 0:02:02.5]} 21... Qa5 {[%clk 0:00:43.1]} 22. Qa2 {[%clk 0:01:43.2]}
22... Kh7 {[%clk 0:00:20.7]} 23. Nd3 {[%clk 0:01:37.3]} 23... Bf8 {[%clk
0:00:18.9]} 24. Nfe5 {[%clk 0:01:27]} 24... Kg7 {[%clk 0:00:17.9]} 25. Nxf7
{[%clk 0:01:13.4]} 25... Qb6 {[%clk 0:00:11.4]} 26. Nfe5 {[%clk 0:01:04.1]}
26... Qe6 {[%clk 0:00:11.3]} 27. Qc2 {[%clk 0:00:56.6]} 27... Bd6 {[%clk
0:00:08.3]} 28. Nf4 {[%clk 0:00:48.6]} 28... Qe7 {[%clk 0:00:06.6]} 29. Nexg6
{[%clk 0:00:37]} 29... Qf6 {[%clk 0:00:06.6]} 30. Nxh5+ {[%clk 0:00:36.3]} 1-0

[Event "Late-Titled-Tuesday-Blitz-January-16-2024"]
[Site "Chess.com"]
[Date "2024.01.16"]
[Round "9"]
[White "jinxy2009"]
[Black "Aguiar94"]
[Result "0-1"]
[WhiteElo "2233"]
[BlackElo "2493"]
[TimeControl "180+1"]
[EndTime "15:45:38 PST"]
[Termination "Aguiar94 won on time"]

1. e4 {[%clk 0:03:00.9]} 1... c5 {[%clk 0:02:58.6]} 2. Nf3 {[%clk 0:03:00.6]}
2... e6 {[%clk 0:02:58.2]} 3. d4 {[%clk 0:02:59.4]} 3... cxd4 {[%clk 0:02:59.1]}
4. Nxd4 {[%clk 0:02:59.9]} 4... Nc6 {[%clk 0:02:59.5]} 5. Nc3 {[%clk 0:02:59]}
5... Qc7 {[%clk 0:02:59.5]} 6. Be3 {[%clk 0:02:58.4]} 6... a6 {[%clk 0:02:59.9]}
7. g4 {[%clk 0:02:53.6]} 7... Nge7 {[%clk 0:02:58.2]} 8. h4 {[%clk 0:02:47.6]}
8... Nxd4 {[%clk 0:02:56.3]} 9. Bxd4 {[%clk 0:02:47.3]} 9... Nc6 {[%clk
0:02:56.1]} 10. Be3 {[%clk 0:02:47]} 10... b5 {[%clk 0:02:55]} 11. Qd2 {[%clk
0:02:44.8]} 11... Be7 {[%clk 0:02:49.3]} 12. O-O-O {[%clk 0:02:43.7]} 12... O-O
{[%clk 0:02:47.7]} 13. g5 {[%clk 0:01:30.9]} 13... Rd8 {[%clk 0:02:39]} 14. h5
{[%clk 0:01:29.4]} 14... Bb7 {[%clk 0:02:34]} 15. g6 {[%clk 0:01:26.8]} 15...
Bf6 {[%clk 0:02:30.6]} 16. h6 {[%clk 0:01:23.9]} 16... fxg6 {[%clk 0:02:26.8]}
17. hxg7 {[%clk 0:01:23.5]} 17... Bxg7 {[%clk 0:02:27.7]} 18. Bh6 {[%clk
0:01:23.3]} 18... Bh8 {[%clk 0:02:24.7]} 19. Nd5 {[%clk 0:01:09.3]} 19... Qe5
{[%clk 0:02:14]} 20. c3 {[%clk 0:01:06.5]} 20... exd5 {[%clk 0:02:09.2]} 21. f4
{[%clk 0:01:00.5]} 21... Qe7 {[%clk 0:01:53.2]} 22. Qxd5+ {[%clk 0:00:57.6]}
22... Qf7 {[%clk 0:01:52]} 23. Qd6 {[%clk 0:00:25.5]} 23... Rac8 {[%clk
0:01:30.5]} 24. e5 {[%clk 0:00:13.7]} 24... Ne7 {[%clk 0:01:16.7]} 25. Rg1
{[%clk 0:00:10.4]} 25... Nf5 {[%clk 0:01:16.4]} 26. e6 {[%clk 0:00:02.6]} 26...
Nxd6 {[%clk 0:00:47.6]} 27. exf7+ {[%clk 0:00:01.3]} 27... Nxf7 {[%clk
0:00:48.5]} 28. Bg5 {[%clk 0:00:01.5]} 28... Nxg5 {[%clk 0:00:43.4]} 29. Rxg5
{[%clk 0:00:02.4]} 29... Bf6 {[%clk 0:00:39.4]} 0-1

[Event "Late-Titled-Tuesday-Blitz-January-16-2024"]
[Site "Chess.com"]
[Date "2024.01.16"]
[Round "9"]
[White "Atousa"]
[Black "DraningWaterHi"]
[Result "1-0"]
[WhiteElo "2468"]
[BlackElo "2243"]
[TimeControl "180+1"]
[EndTime "15:45:39 PST"]
[Termination "Atousa won by checkmate"]

1. d4 {[%clk 0:02:54.8]} 1... Nf6 {[%clk 0:02:59.5]} 2. Bf4 {[%clk 0:02:54.2]}
2... d5 {[%clk 0:02:58.4]} 3. e3 {[%clk 0:02:54]} 3... c5 {[%clk 0:02:59]} 4. c3
{[%clk 0:02:53.1]} 4... e6 {[%clk 0:02:59.5]} 5. Nf3 {[%clk 0:02:52.9]} 5... Bd6
{[%clk 0:03:00]} 6. Bg3 {[%clk 0:02:52.1]} 6... Qc7 {[%clk 0:02:59.5]} 7. Bd3
{[%clk 0:02:50.9]} 7... Nbd7 {[%clk 0:02:59.5]} 8. Nbd2 {[%clk 0:02:49.5]} 8...
e5 {[%clk 0:02:59.3]} 9. dxe5 {[%clk 0:02:46]} 9... Nxe5 {[%clk 0:03:00.2]} 10.
Nxe5 {[%clk 0:02:44.2]} 10... Bxe5 {[%clk 0:03:01.1]} 11. Bxe5 {[%clk
0:02:44.6]} 11... Qxe5 {[%clk 0:03:02]} 12. Nf3 {[%clk 0:02:45.1]} 12... Qc7
{[%clk 0:02:58.2]} 13. Bb5+ {[%clk 0:02:42.3]} 13... Bd7 {[%clk 0:02:57.7]} 14.
Bxd7+ {[%clk 0:02:42.5]} 14... Qxd7 {[%clk 0:02:58.6]} 15. Ne5 {[%clk
0:02:42.4]} 15... Qe6 {[%clk 0:02:52.1]} 16. Qa4+ {[%clk 0:02:39.8]} 16... Nd7
{[%clk 0:02:48.4]} 17. Nd3 {[%clk 0:02:33.9]} 17... O-O {[%clk 0:02:45.8]} 18.
O-O {[%clk 0:02:29.7]} 18... a6 {[%clk 0:02:44.5]} 19. Rad1 {[%clk 0:02:28.7]}
19... b5 {[%clk 0:02:44.2]} 20. Qc2 {[%clk 0:02:28.1]} 20... Nb8 {[%clk
0:02:43.7]} 21. Nxc5 {[%clk 0:02:27.6]} 21... Qb6 {[%clk 0:02:42.7]} 22. Rxd5
{[%clk 0:02:25.7]} 22... Rc8 {[%clk 0:02:42.9]} 23. Qf5 {[%clk 0:02:18]} 23...
Nc6 {[%clk 0:02:40.8]} 24. Rd7 {[%clk 0:02:14.1]} 24... Rf8 {[%clk 0:02:37.1]}
25. b4 {[%clk 0:02:00.4]} 25... a5 {[%clk 0:02:36.7]} 26. Rb7 {[%clk 0:01:41.7]}
26... Qd8 {[%clk 0:02:36.4]} 27. Nd7 {[%clk 0:01:29.2]} 27... Re8 {[%clk
0:02:33.6]} 28. Qxb5 {[%clk 0:01:14]} 28... Re6 {[%clk 0:02:30.7]} 29. Nc5
{[%clk 0:01:08.4]} 29... Rh6 {[%clk 0:02:29.3]} 30. a3 {[%clk 0:00:52.7]} 30...
axb4 {[%clk 0:02:28.7]} 31. axb4 {[%clk 0:00:51.3]} 31... Qh4 {[%clk 0:02:28.3]}
32. h3 {[%clk 0:00:47.6]} 32... Rf8 {[%clk 0:02:28.3]} 33. Nd7 {[%clk
0:00:42.3]} 33... Rd8 {[%clk 0:02:23.7]} 34. Ne5 {[%clk 0:00:37.6]} 34... Nxe5
{[%clk 0:02:20.1]} 35. Qxe5 {[%clk 0:00:38.5]} 35... Re6 {[%clk 0:02:19.8]} 36.
Qf4 {[%clk 0:00:37.5]} 36... Qh5 {[%clk 0:02:13.3]} 37. b5 {[%clk 0:00:33.8]}
37... h6 {[%clk 0:02:10.8]} 38. b6 {[%clk 0:00:30.6]} 38... Rf6 {[%clk
0:02:05.6]} 39. Qg4 {[%clk 0:00:29.7]} 39... Qd5 {[%clk 0:02:00.7]} 40. Qd4
{[%clk 0:00:20.1]} 40... Qxb7 {[%clk 0:01:58]} 41. Qxd8+ {[%clk 0:00:20.3]}
41... Kh7 {[%clk 0:01:58.5]} 42. Rb1 {[%clk 0:00:20.6]} 42... Rg6 {[%clk
0:01:58.6]} 43. g3 {[%clk 0:00:18.2]} 43... Qf3 {[%clk 0:01:56.3]} 44. Qd2
{[%clk 0:00:17.3]} 44... Qe4 {[%clk 0:01:54.8]} 45. Rb2 {[%clk 0:00:16.6]} 45...
Qb7 {[%clk 0:01:53.9]} 46. c4 {[%clk 0:00:16.5]} 46... Rxb6 {[%clk 0:01:52.3]}
47. Qd3+ {[%clk 0:00:13.7]} 47... g6 {[%clk 0:01:51.2]} 48. Rxb6 {[%clk
0:00:14.6]} 48... Qxb6 {[%clk 0:01:51.3]} 49. h4 {[%clk 0:00:14.3]} 49... h5
{[%clk 0:01:51.6]} 50. Kh2 {[%clk 0:00:14.5]} 50... Qb2 {[%clk 0:01:50.8]} 51.
Kg2 {[%clk 0:00:13.9]} 51... Kh6 {[%clk 0:01:50.4]} 52. Qd4 {[%clk 0:00:14.2]}
52... Qb8 {[%clk 0:01:49.5]} 53. Qf4+ {[%clk 0:00:13.7]} 53... Qxf4 {[%clk
0:01:47.9]} 54. gxf4 {[%clk 0:00:14.4]} 54... Kg7 {[%clk 0:01:48.8]} 55. Kf3
{[%clk 0:00:13.6]} 55... Kf8 {[%clk 0:01:49.7]} 56. Ke4 {[%clk 0:00:14]} 56...
Ke7 {[%clk 0:01:50.6]} 57. Kd5 {[%clk 0:00:14.2]} 57... Kf6 {[%clk 0:01:50.5]}
58. c5 {[%clk 0:00:14.3]} 58... Kf5 {[%clk 0:01:51.4]} 59. c6 {[%clk 0:00:14.8]}
59... Kg4 {[%clk 0:01:52.3]} 60. c7 {[%clk 0:00:15.5]} 60... Kxh4 {[%clk
0:01:53.2]} 61. c8=Q {[%clk 0:00:16.1]} 61... f5 {[%clk 0:01:52.8]} 62. Qe6
{[%clk 0:00:16.4]} 62... Kg4 {[%clk 0:01:53.7]} 63. Qxg6+ {[%clk 0:00:16.7]}
63... Kh4 {[%clk 0:01:53.9]} 64. Qh6 {[%clk 0:00:16.7]} 64... Kh3 {[%clk
0:01:54.8]} 65. Ke5 {[%clk 0:00:16.7]} 65... Kg4 {[%clk 0:01:55]} 66. Kf6 {[%clk
0:00:16.7]} 66... h4 {[%clk 0:01:55.3]} 67. Qg6+ {[%clk 0:00:17]} 67... Kf3
{[%clk 0:01:55]} 68. Qxf5 {[%clk 0:00:17.9]} 68... Kg2 {[%clk 0:01:54.5]} 69.
Qg4+ {[%clk 0:00:18.2]} 69... Kf1 {[%clk 0:01:54.3]} 70. Qxh4 {[%clk 0:00:18.7]}
70... Kg1 {[%clk 0:01:55.2]} 71. f5 {[%clk 0:00:19.2]} 71... Kg2 {[%clk
0:01:55.7]} 72. Ke5 {[%clk 0:00:19.8]} 72... Kf1 {[%clk 0:01:56.6]} 73. f6
{[%clk 0:00:20.4]} 73... Kg1 {[%clk 0:01:57.5]} 74. f7 {[%clk 0:00:21.1]} 74...
Kg2 {[%clk 0:01:58.4]} 75. f8=Q {[%clk 0:00:21.6]} 75... Kf1 {[%clk 0:01:59.3]}
76. Qg7 {[%clk 0:00:21.6]} 76... Ke2 {[%clk 0:01:59.6]} 77. f4 {[%clk
0:00:22.3]} 77... Kf1 {[%clk 0:02:00.5]} 78. Qgg3 {[%clk 0:00:20]} 78... Ke2
{[%clk 0:02:01.4]} 79. Qf2+ {[%clk 0:00:19.5]} 79... Kd3 {[%clk 0:02:02.3]} 80.
Qh7+ {[%clk 0:00:19.6]} 80... Kc3 {[%clk 0:02:01.5]} 81. Qfc2+ {[%clk
0:00:19.7]} 81... Kb4 {[%clk 0:02:01]} 82. Qb7+ {[%clk 0:00:19.7]} 82... Ka5
{[%clk 0:02:01.3]} 83. Qa2# {[%clk 0:00:19.9]} 1-0

[Event "Late-Titled-Tuesday-Blitz-January-16-2024"]
[Site "Chess.com"]
[Date "2024.01.16"]
[Round "9"]
[White "scandalgod"]
[Black "KorolDimitriy75"]
[Result "1-0"]
[WhiteElo "2527"]
[BlackElo "2368"]
[TimeControl "180+1"]
[EndTime "15:45:46 PST"]
[Termination "scandalgod won on time"]

1. d4 {[%clk 0:03:00.9]} 1... Nf6 {[%clk 0:02:59.6]} 2. c4 {[%clk 0:03:01.3]}
2... c5 {[%clk 0:02:59.6]} 3. d5 {[%clk 0:03:01.3]} 3... b5 {[%clk 0:02:59.9]}
4. cxb5 {[%clk 0:03:01.9]} 4... a6 {[%clk 0:03:00.3]} 5. e3 {[%clk 0:03:02.4]}
5... axb5 {[%clk 0:03:00]} 6. Bxb5 {[%clk 0:03:02.2]} 6... Qa5+ {[%clk
0:03:00.1]} 7. Nc3 {[%clk 0:03:02.1]} 7... Bb7 {[%clk 0:03:00.3]} 8. Bd2 {[%clk
0:02:58.1]} 8... Qb6 {[%clk 0:03:00.3]} 9. Nf3 {[%clk 0:02:30.2]} 9... Nxd5
{[%clk 0:02:59.3]} 10. a4 {[%clk 0:02:28.2]} 10... e6 {[%clk 0:02:58.7]} 11. O-O
{[%clk 0:02:26.1]} 11... Nb4 {[%clk 0:02:58.5]} 12. Ne5 {[%clk 0:02:10.2]} 12...
Be7 {[%clk 0:02:57.7]} 13. e4 {[%clk 0:01:55.8]} 13... O-O {[%clk 0:02:49.6]}
14. Qg4 {[%clk 0:01:55.2]} 14... d5 {[%clk 0:02:25.1]} 15. exd5 {[%clk
0:01:36.5]} 15... exd5 {[%clk 0:02:26]} 16. Rad1 {[%clk 0:01:32.5]} 16... d4
{[%clk 0:02:00]} 17. Ne2 {[%clk 0:01:09.8]} 17... Ba6 {[%clk 0:01:12.3]} 18.
Bxb4 {[%clk 0:00:54.2]} 18... Bxb5 {[%clk 0:01:03.6]} 19. axb5 {[%clk
0:00:49.9]} 19... cxb4 {[%clk 0:01:03.4]} 20. Nxd4 {[%clk 0:00:49.3]} 20... Bf6
{[%clk 0:00:49.9]} 21. Nc4 {[%clk 0:00:40.3]} 21... Qc5 {[%clk 0:00:48.5]} 22.
Nf5 {[%clk 0:00:38.3]} 22... Kh8 {[%clk 0:00:27.2]} 23. Rd6 {[%clk 0:00:31.6]}
23... Rg8 {[%clk 0:00:18.3]} 24. Rfd1 {[%clk 0:00:29.4]} 24... Qxb5 {[%clk
0:00:17.1]} 25. Rxf6 {[%clk 0:00:25.8]} 25... gxf6 {[%clk 0:00:16.8]} 26. Qxg8+
{[%clk 0:00:22.9]} 26... Kxg8 {[%clk 0:00:15.6]} 27. Rd8+ {[%clk 0:00:23]} 1-0

[Event "Late-Titled-Tuesday-Blitz-January-16-2024"]
[Site "Chess.com"]
[Date "2024.01.16"]
[Round "9"]
[White "Viktor_Poddubnyi"]
[Black "KSho99"]
[Result "0-1"]
[WhiteElo "2247"]
[BlackElo "2163"]
[TimeControl "180+1"]
[EndTime "15:45:49 PST"]
[Termination "KSho99 won by checkmate"]

1. e4 {[%clk 0:02:59.5]} 1... c6 {[%clk 0:02:57.9]} 2. d4 {[%clk 0:02:59.1]}
2... d5 {[%clk 0:02:58.1]} 3. exd5 {[%clk 0:03:00]} 3... cxd5 {[%clk 0:02:58.3]}
4. c4 {[%clk 0:03:00.6]} 4... Nf6 {[%clk 0:02:57.9]} 5. Nc3 {[%clk 0:03:01.1]}
5... Nc6 {[%clk 0:02:56.2]} 6. Bg5 {[%clk 0:03:00]} 6... dxc4 {[%clk 0:02:43.1]}
7. Bxc4 {[%clk 0:02:58.5]} 7... h6 {[%clk 0:02:27.8]} 8. Be3 {[%clk 0:02:57.4]}
8... e6 {[%clk 0:02:20.3]} 9. Nf3 {[%clk 0:02:57.4]} 9... Bd6 {[%clk 0:02:09.6]}
10. O-O {[%clk 0:02:56.8]} 10... O-O {[%clk 0:02:09.2]} 11. a3 {[%clk
0:02:40.6]} 11... b6 {[%clk 0:02:00.9]} 12. Qd3 {[%clk 0:02:40.1]} 12... Bb7
{[%clk 0:01:56.1]} 13. Rad1 {[%clk 0:02:38.8]} 13... Ne7 {[%clk 0:01:41.6]} 14.
Qe2 {[%clk 0:02:27.4]} 14... Rc8 {[%clk 0:01:33.2]} 15. Ba2 {[%clk 0:02:26]}
15... Bxa3 {[%clk 0:01:18.6]} 16. bxa3 {[%clk 0:01:59]} 16... Rxc3 {[%clk
0:01:17.8]} 17. Ne5 {[%clk 0:01:46.8]} 17... Rxa3 {[%clk 0:01:10.9]} 18. Qb2
{[%clk 0:01:30.1]} 18... Ra5 {[%clk 0:00:59.7]} 19. Rfe1 {[%clk 0:01:26.4]}
19... Ned5 {[%clk 0:00:53.3]} 20. Bd2 {[%clk 0:01:23.3]} 20... Ra6 {[%clk
0:00:39.5]} 21. Bc4 {[%clk 0:01:22.4]} 21... b5 {[%clk 0:00:36.1]} 22. Qxb5
{[%clk 0:01:16.4]} 22... Rb6 {[%clk 0:00:35.9]} 23. Qa4 {[%clk 0:01:14.7]} 23...
Qb8 {[%clk 0:00:24.5]} 24. Ra1 {[%clk 0:01:05.4]} 24... a6 {[%clk 0:00:21.5]}
25. Ra2 {[%clk 0:00:53]} 25... Rc8 {[%clk 0:00:21.2]} 26. Ba5 {[%clk 0:00:36.6]}
26... Rd6 {[%clk 0:00:16.3]} 27. Rb1 {[%clk 0:00:36.2]} 27... Qa8 {[%clk
0:00:15.2]} 28. Rab2 {[%clk 0:00:35.4]} 28... Bc6 {[%clk 0:00:14.3]} 29. Qa3
{[%clk 0:00:29.9]} 29... Nf4 {[%clk 0:00:13.3]} 30. Qxd6 {[%clk 0:00:27]} 30...
Bb5 {[%clk 0:00:09.5]} 31. Bxb5 {[%clk 0:00:23.6]} 31... Qxg2# {[%clk
0:00:08.9]} 0-1

[Event "Late-Titled-Tuesday-Blitz-January-16-2024"]
[Site "Chess.com"]
[Date "2024.01.16"]
[Round "9"]
[White "PNEPaul"]
[Black "agvega14"]
[Result "0-1"]
[WhiteElo "1908"]
[BlackElo "2136"]
[TimeControl "180+1"]
[EndTime "15:46:00 PST"]
[Termination "agvega14 won on time"]

1. e4 {[%clk 0:02:46.6]} 1... c5 {[%clk 0:02:58.4]} 2. Nf3 {[%clk 0:02:45.3]}
2... a6 {[%clk 0:02:58.4]} 3. d4 {[%clk 0:02:45.3]} 3... cxd4 {[%clk 0:02:59.3]}
4. c3 {[%clk 0:02:44.8]} 4... d5 {[%clk 0:02:54.6]} 5. exd5 {[%clk 0:02:44.1]}
5... Nf6 {[%clk 0:02:49.6]} 6. cxd4 {[%clk 0:02:42.9]} 6... Nxd5 {[%clk
0:02:48.2]} 7. Be2 {[%clk 0:02:42.9]} 7... Nc6 {[%clk 0:02:47.6]} 8. O-O {[%clk
0:02:42.6]} 8... g6 {[%clk 0:02:46.3]} 9. Nc3 {[%clk 0:02:42.6]} 9... Bg7 {[%clk
0:02:45.4]} 10. Nxd5 {[%clk 0:02:42.5]} 10... Qxd5 {[%clk 0:02:44.6]} 11. Be3
{[%clk 0:02:42.3]} 11... O-O {[%clk 0:02:43.1]} 12. Qd2 {[%clk 0:02:42.5]} 12...
Bg4 {[%clk 0:02:37.8]} 13. h3 {[%clk 0:02:31]} 13... Bf5 {[%clk 0:02:34.1]} 14.
Rfd1 {[%clk 0:02:22.3]} 14... Rfd8 {[%clk 0:02:30.9]} 15. Rac1 {[%clk
0:02:14.8]} 15... Be4 {[%clk 0:02:15.5]} 16. Bc4 {[%clk 0:01:26.9]} 16... Qa5
{[%clk 0:01:42.2]} 17. Qxa5 {[%clk 0:01:12.6]} 17... Nxa5 {[%clk 0:01:41.7]} 18.
Bxf7+ {[%clk 0:01:11]} 18... Kxf7 {[%clk 0:01:13.6]} 19. Ng5+ {[%clk 0:01:10.6]}
19... Ke8 {[%clk 0:01:02.5]} 20. Nxe4 {[%clk 0:01:09.9]} 20... Nc6 {[%clk
0:01:00.9]} 21. Nc5 {[%clk 0:00:54.4]} 21... Bxd4 {[%clk 0:00:49.9]} 22. Ne6
{[%clk 0:00:44.8]} 22... Bxe3 {[%clk 0:00:44.5]} 23. Nc7+ {[%clk 0:00:36.5]}
23... Kf7 {[%clk 0:00:41.5]} 24. fxe3 {[%clk 0:00:25.7]} 24... Rxd1+ {[%clk
0:00:37.8]} 25. Rxd1 {[%clk 0:00:25.6]} 25... Rc8 {[%clk 0:00:38]} 26. Rf1+
{[%clk 0:00:24.3]} 26... Kg7 {[%clk 0:00:34.4]} 27. Ne6+ {[%clk 0:00:23.5]}
27... Kg8 {[%clk 0:00:32.5]} 28. Nd4 {[%clk 0:00:12.5]} 28... Ne5 {[%clk
0:00:32]} 29. Rf2 {[%clk 0:00:10.7]} 29... Rc1+ {[%clk 0:00:28.1]} 30. Kh2
{[%clk 0:00:10.2]} 30... Re1 {[%clk 0:00:27.6]} 31. Ne6 {[%clk 0:00:09.7]} 31...
Nf7 {[%clk 0:00:18.6]} 32. Rf3 {[%clk 0:00:08.2]} 32... Re2 {[%clk 0:00:17.8]}
0-1